bitfinex/quotes_ETHUSD_20241223
["timestamp","ask_amount","ask_price","bid_price","bid_amount"]
[1734965944446,1.2071,3314.3,3312.6,4.2498]
[1734965944447,4.22439,3314.3,3312.6,4.2498]
[1734965944756,3.01762,3313.9,3312.8,3.01857]
[1734965944957,1.1976,3313.5,3312.1,4.2978]
[1734965945155,1.2515,3315.2,3313.1,3.0]
[1734965945362,3.01671,3314.9,3313.7,3.0177]
[1734965945539,1.2515,3314.6,3313.0,4.2504]
[1734965945770,1.2515,3314.6,3312.9,0.60421882]
[1734965945771,3.01756,3314.0,3312.9,0.60421882]
[1734965945968,1.2515,3314.6,3313.1,3.01832]
[1734965946196,4.26845,3314.6,3313.2,3.0]
[1734965946400,3.01594,3315.8,3314.4,3.0171]
[1734965946705,3.01608,3315.6,3314.5,3.01703]
[1734965946890,3.01636,3315.3,3314.1,3.01732]
[1734965947442,3.01691,3314.7,3313.4,4.2881]
[1734965947641,0.40322913,3315.3,3313.2,3.01819]
[1734965947872,1.2758,3314.1,3313.3,3.0]
[1734965948058,1.2758,3314.1,3313.3,3.01804]
[1734965948271,1.2758,3314.1,3313.2,3.0]
[1734965948479,1.2758,3314.1,3312.7,1.3406]
[1734965948690,1.2758,3314.1,3313.2,3.01815]
[1734965948842,1.2758,3314.1,3312.9,3.0]
[1734965949044,1.2758,3314.1,3313.3,3.01813]
[1734965949282,1.2758,3314.1,3313.1,3.0]
[1734965949587,1.2758,3314.1,3313.5,3.01787]
[1734965950093,1.2758,3314.1,3313.5,3.01793]
[1734965950647,1.2758,3314.1,3313.5,3.01786]
[1734965951062,1.2758,3314.1,3313.4,3.01801]
[1734965951504,3.01752,3314.0,3312.7,1.3406]
[1734965951804,1.2758,3314.1,3313.4,3.018]
[1734965951946,1.2758,3314.1,3312.7,1.3406]
[1734965952148,3.01759,3313.9,3312.5,0.62490576]
[1734965952353,3.0175,3314.0,3312.5,3.61356835]
[1734965952548,1.3197,3313.3,3312.5,0.59472835]
[1734965953025,4.33784,3313.3,3312.5,0.59472835]
[1734965953172,1.3197,3313.3,3312.5,0.59472835]
[1734965953466,3.01825,3313.2,3312.2,4.2614129]
[1734965953675,1.3197,3313.3,3312.3,3.01901]
[1734965954491,3.01847,3313.0,3312.2,3.0]
[1734965954689,3.01847,3313.0,3311.9,3.01939]
[1734965954890,3.01847,3313.0,3312.0,3.01929]
[1734965955074,3.01847,3313.0,3311.7,1.3804]
[1734965955075,3.01824,3313.2,3312.1,3.0192]
[1734965955408,3.01885,3312.6,3311.7,0.60823373]
[1734965955709,3.01885,3312.6,3311.6,1.55682825]
[1734965955710,4.36199,3312.5,3311.6,1.55682825]
[1734965956308,4.36199,3312.5,3311.6,0.31454535]
[1734965956511,1.3431,3312.5,3311.6,0.31454535]
[1734965956810,3.0,3312.9,3311.6,0.31454535]
[1734965956811,4.29509,3311.7,3311.6,0.31454535]
[1734965956961,3.02009,3311.2,3311.0,1.2422829]
[1734965957160,3.01968,3311.6,3310.0,4.32046]
[1734965957161,3.01968,3311.6,3310.8,1.2422829]
[1734965957413,3.01993,3311.4,3310.8,1.2422829]
[1734965957570,4.724679,3311.7,3310.8,1.2422829]
[1734965957773,3.01969,3311.6,3310.8,1.2422829]
[1734965957981,4.2755,3311.7,3310.8,1.2422829]
[1734965958199,3.0197,3311.6,3310.8,1.2422829]
[1734965958378,1.2755,3311.7,3310.8,1.2422829]
[1734965958715,1.2755,3311.7,3310.4,3.10570726]
[1734965958716,3.01974,3311.6,3310.4,3.02074]
[1734965959023,1.2755,3311.7,3310.3,0.1683068]
[1734965959396,3.01979,3311.5,3310.4,3.02072]
[1734965959613,4.29511,3311.7,3310.5,3.02069]
[1734965959798,3.01969,3311.6,3310.5,3.02069]
[1734965959999,1.2755,3311.7,3310.6,3.0]
[1734965960199,1.2755,3311.7,3310.8,3.02036]
[1734965960434,1.2755,3311.7,3310.5,3.0]
[1734965960750,3.01969,3311.6,3310.4,3.63026352]
[1734965961044,1.2755,3311.7,3310.3,0.78688032]
[1734965961251,3.76138413,3313.1,3310.3,0.78688032]
[1734965961252,1.3672,3313.2,3311.1,3.02014]
[1734965961545,1.3672,3313.2,3312.2,3.01905]
[1734965961745,1.3672,3313.2,3311.8,1.3816]
[1734965961897,1.3672,3313.2,3312.2,3.01909]
[1734965962099,1.3672,3313.2,3312.3,3.01903]
[1734965962316,1.3672,3313.2,3312.1,3.0]
[1734965962543,1.3672,3313.2,3312.4,3.01895]
[1734965963417,1.3493,3314.5,3313.0,3.108155]
[1734965963595,1.3493,3314.5,3313.9,3.01752]
[1734965963797,4.84788308,3315.0,3314.1,3.0174]
[1734965963798,1.3493,3314.9,3314.1,3.0174]
[1734965964041,1.3493,3314.9,3313.6,6.108155]
[1734965964245,1.83129308,3315.0,3314.9,3.01668]
[1734965964448,0.32299308,3315.0,3314.9,6.01668]
[1734965964600,1.54400232,3315.3,3315.0,6.01659]
[1734965964801,1.54400232,3315.3,3315.2,3.0164]
[1734965965028,2.47479607,3316.8,3315.5,3.01605]
[1734965965229,2.47479607,3316.8,3315.6,3.03015059]
[1734965965447,2.47479607,3316.8,3316.3,3.01533]
[1734965965659,2.47479607,3316.8,3316.1,3.0]
[1734965965950,2.47479607,3316.8,3316.0,3.01562]
[1734965966258,1.2619,3316.7,3315.0,4.3542]
[1734965966412,1.2619,3316.7,3315.3,3.61025949]
[1734965966596,3.01513,3316.6,3315.8,1.2422829]
[1734965966797,1.2619,3316.7,3315.8,1.2422829]
[1734965967659,3.01522,3316.5,3315.3,4.2422829]
[1734965967957,3.01537,3316.4,3315.3,4.2422829]
[1734965968250,3.01513,3316.6,3315.1,3.0]
[1734965968412,0.427703,3316.5,3315.0,4.2422829]
[1734965968619,3.01548,3316.3,3315.0,4.27244016]
[1734965968803,3.01551,3316.2,3315.0,7.28902016]
[1734965969004,3.01533,3316.4,3315.0,6.01658]
[1734965969314,0.427703,3316.5,3314.8,4.2590329]
[1734965969502,0.427703,3316.5,3314.8,1.27244101]
[1734965969742,3.0155,3316.2,3315.0,3.0]
[1734965970260,1.0,3316.5,3315.0,3.0]
[1734965970433,1.0,3316.5,3315.4,6.0162]
[1734965970616,1.0,3316.5,3315.0,6.01652]
[1734965970617,3.01534,3316.4,3315.0,6.01652]
[1734965970817,3.0155,3316.2,3314.7,1.2422829]
[1734965971045,3.0155,3316.2,3314.9,1.2422829]
[1734965971253,1.0,3316.5,3314.9,4.27244036]
[1734965971485,3.01547,3316.3,3315.0,3.01659]
[1734965971745,3.01547,3316.3,3315.1,3.0]
[1734965971904,1.0,3316.5,3315.3,3.01631]
[1734965972102,1.0,3316.5,3315.4,0.03015436]
[1734965972303,1.0,3316.5,3315.5,4.36681]
[1734965972615,1.0,3316.5,3315.6,6.016]
[1734965973021,3.01468,3317.1,3315.9,3.01575]
[1734965973205,1.3013,3317.4,3315.5,1.3507]
[1734965973400,3.0,3317.3,3315.6,3.0]
[1734965973600,3.01533,3316.4,3315.5,1.3507]
[1734965973913,1.3013,3316.3,3315.1,3.0]
[1734965974605,1.3013,3316.3,3315.2,0.03015921]
[1734965974802,1.3013,3316.3,3315.3,3.01624]
[1734965975007,1.3013,3316.8,3315.4,0.03015412]
[1734965975602,1.3013,3316.8,3315.6,3.01601]
[1734965976447,1.3013,3316.8,3315.4,0.03015412]
[1734965976758,1.3013,3316.8,3315.5,3.01612]
[1734965977054,1.3013,3316.8,3315.6,0.03015288]
[1734965977211,1.3013,3316.8,3315.8,3.01584]
[1734965977406,1.3013,3316.8,3315.6,3.04618288]
[1734965977625,3.01511,3316.7,3315.7,3.0]
[1734965977829,3.01511,3316.7,3315.4,3.0]
[1734965977830,3.01543,3316.3,3315.4,3.0]
[1734965978049,0.431641,3316.7,3315.1,3.0]
[1734965978457,0.431641,3316.7,3315.2,0.03015797]
[1734965978670,3.01504,3316.7,3315.2,0.03015797]
[1734965978868,3.01521,3316.6,3315.5,3.0]
[1734965979177,3.01519,3316.6,3315.4,3.0]
[1734965979362,1.3013,3316.8,3315.1,0.58015396]
[1734965980071,1.3013,3316.8,3315.4,3.0]
[1734965980072,3.01527,3316.5,3315.4,3.0]
[1734965980223,1.3013,3316.8,3315.4,3.0]
[1734965980429,1.3013,3316.8,3315.1,0.03015577]
[1734965980639,3.01528,3316.5,3315.4,3.0]
[1734965981032,1.3013,3316.8,3315.4,6.01622]
[1734965981237,3.01514,3316.6,3315.4,6.01622]
[1734965981543,3.01531,3316.4,3315.0,1.2679]
[1734965982137,3.01605,3315.6,3314.6,1.3624]
[1734965982363,3.01624,3315.4,3314.6,1.3624]
[1734965982563,3.0,3316.0,3314.6,0.61833932]
[1734965982773,1.3082,3315.0,3314.6,0.61833932]
[1734965982927,3.01679,3314.8,3314.0,1.2422829]
[1734965983131,4.3248,3315.0,3314.0,1.2422829]
[1734965983572,3.01677,3314.8,3314.0,1.2422829]
[1734965984088,3.01677,3314.8,3313.6,1.3624]
[1734965984449,3.01685,3314.8,3313.6,1.3624]
[1734965984644,3.01686,3314.7,3313.6,1.3624]
[1734965985059,3.01686,3314.7,3313.6,4.38022]
[1734965985988,3.01686,3314.7,3313.8,0.59288572]
[1734965986294,1.3082,3315.0,3313.8,3.59288572]
[1734965986453,3.01677,3314.8,3313.8,3.59288572]
[1734965986652,3.01687,3314.7,3313.8,0.59288572]
[1734965986872,1.3082,3315.0,3313.8,0.59288572]
[1734965987075,1.740667,3315.0,3313.8,0.59288572]
[1734965987851,3.01668,3314.9,3313.8,0.59288572]
[1734965988050,1.740667,3315.0,3313.8,0.59288572]
[1734965988252,3.01668,3314.9,3313.8,0.59288572]
[1734965988563,1.3082,3315.0,3313.9,0.03017241]
[1734965988761,1.3082,3315.0,3314.0,3.01744]
[1734965989293,4.3248,3315.0,3314.1,0.0301696]
[1734965990494,4.3248,3315.0,3313.8,0.59288572]
[1734965990698,0.43248,3314.9,3313.8,0.59288572]
[1734965990859,3.01713,3314.4,3313.8,0.59288572]
[1734965991049,3.01694,3314.7,3313.8,0.59288572]
[1734965991246,3.017,3314.6,3313.8,0.59288572]
[1734965991489,3.01691,3314.7,3313.8,0.59288572]
[1734965991659,1.3082,3315.0,3313.8,0.59288572]
[1734965992190,3.01695,3314.7,3313.8,0.59288572]
[1734965992346,3.01669,3314.9,3313.9,3.04773088]
[1734965992546,3.0168,3314.8,3313.8,0.59288572]
[1734965992747,3.01695,3314.6,3313.8,0.59288572]
[1734965992943,1.3082,3315.0,3313.8,0.59288572]
[1734965993145,1.3082,3315.0,3314.1,3.01734]
[1734965993604,1.3082,3315.0,3313.8,3.59288572]
[1734965993751,4.32485,3315.0,3313.8,0.59288572]
[1734965993950,3.01683,3314.8,3313.8,3.59288572]
[1734965994197,1.3082,3315.0,3313.9,0.03017138]
[1734965994407,3.0167,3314.9,3314.0,1.2671]
[1734965994893,3.01681,3314.8,3314.0,1.2671]
[1734965995095,1.3895,3315.4,3313.8,0.59288572]
[1734965995262,3.0164,3315.2,3313.8,0.59288572]
[1734965995591,1.3895,3315.4,3313.8,0.59288572]
[1734965995592,1.3895,3315.4,3313.9,3.0]
[1734965995763,3.01644,3315.2,3314.1,3.01733]
[1734965995965,3.01659,3315.0,3313.9,6.01757]
[1734965996166,3.01659,3315.0,3314.0,3.01747]
[1734965996369,1.3895,3315.4,3313.8,0.59288572]
[1734965996787,3.0168,3314.8,3313.8,0.59288572]
[1734965996989,3.0168,3314.8,3313.8,3.59288572]
[1734965997294,3.01691,3314.7,3313.8,0.59288572]
[1734965997451,3.01691,3314.7,3313.8,3.59288572]
[1734965998398,3.01686,3314.8,3313.8,0.59288572]
[1734965998756,0.301686,3314.8,3313.6,4.2671]
[1734965998954,3.01726,3314.3,3313.6,1.2671]
[1734965999355,1.3652,3314.6,3313.2,0.61360112]
[1734965999555,3.01757,3314.0,3313.2,0.61360112]
[1734965999960,3.01735,3314.2,3313.2,0.61360112]
[1734966000314,3.01741,3314.1,3313.2,0.61360112]
[1734966000613,6.126065,3313.6,3312.4,1.2422829]
[1734966000822,3.0,3313.4,3312.4,1.2422829]
[1734966001127,0.9744881,3313.4,3312.4,1.2422829]
[1734966001275,1.3652,3313.7,3312.4,1.2422829]
[1734966001472,3.01769,3313.8,3312.8,1.3969]
[1734966001673,3.01769,3313.8,3312.9,0.03018027]
[1734966001903,1.3652,3314.1,3312.8,1.3969]
[1734966002107,3.0176,3313.9,3312.9,0.03017794]
[1734966002423,3.01773,3313.8,3312.8,1.3969]
[1734966002626,1.3652,3314.1,3312.8,1.3969]
[1734966002627,3.01778,3313.7,3312.8,1.3969]
[1734966002922,1.3652,3314.1,3312.8,1.3969]
[1734966003126,3.0179,3313.6,3312.8,1.3969]
[1734966003339,3.01768,3313.8,3312.8,1.3969]
[1734966003539,1.3047,3314.5,3312.8,1.3969]
[1734966003740,1.3047,3314.5,3312.9,0.03017611]
[1734966003894,4.32143,3314.9,3313.1,3.0]
[1734966004089,1.3047,3314.9,3313.2,1.3427]
[1734966004306,0.355,3315.9,3314.1,1.3427]
[1734966004307,1.3047,3315.4,3314.1,1.3427]
[1734966004509,1.3047,3315.4,3314.1,1.37286753]
[1734966004794,1.3047,3315.4,3313.7,1.2777]
[1734966004795,3.01631,3315.3,3313.7,1.2777]
[1734966004991,3.01731,3314.3,3313.7,1.2777]
[1734966005221,3.01631,3315.3,3313.7,1.2777]
[1734966005534,3.01753,3314.0,3313.0,4.3817]
[1734966005688,3.01733,3314.2,3313.0,4.3817]
[1734966005895,3.01717,3314.4,3313.0,1.3817]
[1734966006139,1.2931,3314.5,3313.0,1.3817]
[1734966006309,3.01859,3312.8,3312.7,1.2422829]
[1734966006710,3.01859,3312.8,3312.4,2.48456581]
[1734966006711,3.01886,3312.5,3312.4,1.2422829]
[1734966007395,4.83306,3312.5,3312.4,2.9e-06]
[1734966007740,4.28306,3312.5,3312.4,2.9e-06]
[1734966007900,4.28306,3312.5,3310.9,3.0203029]
[1734966007901,1.2642,3312.5,3310.9,3.0203029]
[1734966008243,3.01913,3312.3,3311.0,3.0202]
[1734966008446,1.692494,3312.5,3310.9,2.9e-06]
[1734966008743,1.2642,3312.5,3311.0,3.02022]
[1734966009157,3.01923,3312.1,3311.0,3.02022]
[1734966009303,3.01955,3311.8,3311.0,1.2952]
[1734966009716,3.01929,3312.1,3311.0,1.2952]
[1734966010051,3.01965,3311.7,3311.0,1.2952]
[1734966010248,3.01972,3311.6,3311.0,1.2952]
[1734966010462,1.3365,3311.5,3310.5,1.337]
[1734966011257,3.02005,3311.2,3310.5,1.337]
[1734966011448,1.3365,3311.5,3310.5,1.337]
[1734966011449,3.02,3311.3,3310.5,1.337]
[1734966011782,1.3487,3312.0,3310.6,0.03020579]
[1734966011928,3.01906,3312.3,3310.7,1.39]
[1734966012125,3.455876,3312.3,3310.7,1.39]
[1734966012469,3.01914,3312.2,3310.7,1.39]
[1734966012632,3.0202,3311.1,3310.3,1.5675068]
[1734966012961,3.02035,3310.9,3310.3,1.5675068]
[1734966013124,3.02034,3310.9,3310.3,1.5675068]
[1734966013319,3.01968,3311.6,3310.3,1.5675068]
[1734966013520,3.02007,3311.2,3310.3,1.5675068]
[1734966013861,3.02016,3311.1,3310.3,1.5675068]
[1734966014061,3.01996,3311.3,3310.3,1.5675068]
[1734966014260,3.02037,3310.9,3310.3,1.5675068]
[1734966014576,3.0,3311.8,3310.4,3.02078]
[1734966014577,1.344,3311.8,3310.4,3.02078]
[1734966014717,1.344,3311.8,3310.3,1.5675068]
[1734966014718,1.344,3312.3,3310.8,3.108155]
[1734966014924,3.01905,3312.3,3311.3,1.3795]
[1734966015169,0.301905,3312.3,3310.5,1.3795]
[1734966015463,3.01941,3312.0,3310.5,1.3795]
[1734966015669,3.01989,3311.4,3310.5,1.3795]
[1734966015902,4.3417,3311.8,3310.5,1.3795]
[1734966016185,3.01987,3311.4,3310.3,0.1683068]
[1734966016395,1.1539779,3311.7,3310.3,0.1683068]
[1734966016682,1.3103,3312.2,3310.6,4.29879]
[1734966016884,1.3103,3312.2,3310.3,0.1683068]
[1734966016885,1.3103,3311.9,3310.3,0.1683068]
[1734966017053,3.02041,3310.8,3309.2,1.86342435]
[1734966017256,3.01932,3312.0,3309.2,1.86342435]
[1734966017257,4.3103,3311.0,3309.5,1.2782]
[1734966017458,3.02055,3310.7,3309.5,1.2782]
[1734966017679,3.02061,3310.6,3309.5,1.2782]
[1734966017854,1.3103,3311.0,3309.6,0.03021086]
[1734966018040,1.3103,3311.0,3309.5,1.2782]
[1734966018041,3.02023,3311.0,3309.5,1.2782]
[1734966018241,4.40043,3311.5,3309.5,1.2782]
[1734966018489,0.55,3311.3,3309.8,3.0]
[1734966018644,3.02033,3310.9,3309.8,3.0]
[1734966018845,0.55,3311.3,3309.5,1.2782]
[1734966019044,3.02038,3310.9,3309.5,1.2782]
[1734966019288,0.55,3311.3,3309.7,3.02142]
[1734966019289,3.56996,3311.3,3309.7,3.02142]
[1734966019501,3.0,3311.4,3310.4,3.02077]
[1734966019800,1.71593,3312.1,3310.5,0.03020429]
[1734966019944,1.71593,3312.1,3310.4,3.108155]
[1734966019945,3.0,3311.8,3310.4,3.108155]
[1734966020294,1.4044,3312.8,3310.6,0.60688193]
[1734966020444,3.01843,3313.0,3311.9,3.01938]
[1734966020641,0.60234126,3314.3,3311.8,1.3045]
[1734966020642,1.4044,3313.3,3311.8,1.3045]
[1734966020845,3.01823,3313.2,3311.8,1.3045]
[1734966021084,3.01897,3312.4,3311.8,1.3045]
[1734966021299,3.01876,3312.7,3311.8,1.3045]
[1734966021590,3.01759,3313.9,3311.8,1.3045]
[1734966021591,1.3716,3313.8,3311.9,3.108155]
[1734966021783,1.3716,3313.8,3312.2,3.0]
[1734966021784,4.38936,3313.8,3312.2,3.0]
[1734966021997,3.01813,3313.4,3312.2,3.01911]
[1734966022191,3.01782,3313.7,3312.2,3.0]
[1734966022374,1.3716,3313.8,3312.7,1.3384]
[1734966022579,1.3308,3315.0,3312.8,0.03018127]
[1734966022899,1.3308,3314.6,3312.7,1.3384]
[1734966023040,0.49509314,3314.5,3312.7,1.3384]
[1734966023261,1.3308,3314.6,3312.2,0.6133555]
[1734966023262,0.25,3313.7,3312.2,0.6133555]
[1734966023465,1.2828,3312.9,3312.2,0.6133555]
[1734966023709,3.01923,3312.1,3311.2,1.3005]
[1734966024216,0.55,3312.8,3311.2,1.3005]
[1734966024359,3.0195,3311.8,3311.2,1.3005]
[1734966024564,3.01933,3312.0,3311.2,1.3005]
[1734966024811,0.301933,3312.0,3311.2,1.3005]
[1734966025110,1.95,3312.0,3310.5,4.40602]
[1734966025310,3.01951,3311.8,3310.7,3.0205]
[1734966025516,3.01991,3311.4,3310.5,1.3854]
[1734966025684,3.0206,3310.6,3310.1,1.24987099]
[1734966025883,0.55,3311.9,3310.1,1.24987099]
[1734966025884,3.0205,3310.7,3310.1,1.24987099]
[1734966026073,3.02015,3311.1,3309.5,1.4137]
[1734966026074,3.02106,3310.1,3309.7,1.24987099]
[1734966026605,3.02133,3309.8,3309.7,1.24987099]
[1734966026774,3.55,3310.3,3309.7,1.24987099]
[1734966027173,3.02114,3310.0,3309.0,1.3744]
[1734966027374,1.66395,3310.6,3309.0,4.39644]
[1734966027621,4.039141,3310.5,3309.0,1.3744]
[1734966027923,3.02087,3310.3,3309.0,1.3744]
[1734966028127,1.018451,3310.5,3309.0,1.3744]
[1734966028341,4.018451,3310.5,3309.0,1.3744]
[1734966028624,3.02161,3309.5,3309.0,1.3744]
[1734966029113,3.02143,3309.7,3309.0,1.3744]
[1734966029324,3.02152,3309.6,3309.0,1.3744]
[1734966029696,0.55,3309.6,3308.3,1.3305]
[1734966030024,0.55,3309.6,3307.4,3.10570726]
[1734966030025,3.02253,3308.5,3307.8,1.3305]
[1734966030235,4.9359,3309.6,3307.8,1.3305]
[1734966030236,3.02234,3308.7,3307.8,1.3305]
[1734966030392,1.9359,3309.6,3307.8,1.3305]
[1734966030393,3.02187,3309.2,3307.8,1.3305]
[1734966030594,3.02206,3309.0,3307.8,1.3305]
[1734966030794,3.02247,3308.6,3307.8,1.3305]
[1734966031013,3.02206,3309.0,3307.8,1.3305]
[1734966031182,3.02252,3308.5,3307.8,1.3305]
[1734966031528,3.02228,3308.8,3307.8,1.3305]
[1734966031697,0.9652187,3309.1,3307.8,1.3305]
[1734966032025,3.02237,3308.7,3307.8,1.3305]
[1734966032227,3.02253,3308.5,3307.8,1.3305]
[1734966032593,0.55,3308.9,3307.8,1.3305]
[1734966032814,0.55,3309.1,3307.8,1.3305]
[1734966032815,3.02288,3308.1,3307.8,1.3305]
[1734966033001,3.02288,3308.1,3307.4,1.3774]
[1734966033329,3.02318,3307.8,3307.4,1.3774]
[1734966033499,3.0,3308.4,3307.3,0.00755]
[1734966033698,0.49999732,3309.2,3307.3,0.00755]
[1734966033699,1.4072,3307.4,3307.3,0.00755]
[1734966033911,3.0,3308.9,3307.3,0.00755]
[1734966034116,0.43862,3308.8,3307.3,0.00755]
[1734966034279,3.0,3308.7,3307.3,0.00755]
[1734966034481,3.02233,3308.7,3307.3,0.00755]
[1734966034725,3.02349,3307.5,3307.3,0.00755]
[1734966034927,3.02379,3307.1,3307.0,0.1683068]
[1734966035228,6.326169,3307.1,3307.0,0.1683068]
[1734966035415,6.326169,3307.1,3307.0,6.8e-06]
[1734966035619,6.326169,3307.1,3305.4,1.24987099]
[1734966035620,3.02477,3306.1,3305.4,1.24987099]
[1734966035925,3.02477,3306.1,3305.3,3.18222435]
[1734966035926,3.02477,3306.1,3305.3,1.3188]
[1734966036233,1.4096,3306.3,3304.8,1.34]
[1734966036521,3.02481,3306.0,3304.8,1.34]
[1734966036734,3.0,3305.8,3304.8,1.34]
[1734966036880,3.02514,3305.7,3304.8,1.34]
[1734966037079,1.4096,3306.3,3304.8,1.34]
[1734966037080,6.02471,3306.1,3304.8,1.34]
[1734966037281,3.55,3306.1,3304.8,1.34]
[1734966037481,3.55,3306.1,3303.7,0.1683068]
[1734966037482,3.02596,3304.8,3304.3,1.34]
[1734966037720,3.0259,3304.8,3303.8,1.34]
[1734966037927,3.02602,3304.7,3303.8,1.34]
[1734966038113,3.0,3305.2,3303.7,0.1683068]
[1734966038327,4.466355,3305.3,3303.7,0.1683068]
[1734966038328,3.0,3304.7,3303.7,0.1683068]
[1734966038634,3.02646,3304.2,3303.7,0.1683068]
[1734966038801,3.02627,3304.4,3303.7,0.1683068]
[1734966039125,3.02655,3304.1,3303.7,0.1683068]
[1734966039345,3.02675,3303.9,3303.7,0.1683068]
[1734966039493,3.0,3304.2,3303.7,0.1683068]
[1734966039931,1.3525,3304.5,3303.7,0.1683068]
[1734966040110,0.19633155,3304.4,3303.7,0.1683068]
[1734966040316,1.3525,3304.5,3303.7,0.1683068]
[1734966040317,3.02637,3304.3,3303.7,0.1683068]
[1734966040515,3.0,3304.2,3303.7,0.1683068]
[1734966040900,3.108155,3303.8,3303.7,0.1683068]
[1734966041525,3.02675,3303.9,3303.7,0.1683068]
[1734966041928,3.0,3304.2,3303.7,0.1683068]
[1734966042337,3.0,3304.2,3303.7,1.5123068]
[1734966043444,3.0,3304.2,3303.9,3.02668]
[1734966043599,3.0,3304.2,3303.7,4.5391968]
[1734966043797,3.0,3304.2,3303.8,3.02678]
[1734966044205,1.94223892,3305.5,3303.8,3.02678]
[1734966044206,3.02542,3305.4,3304.1,3.0265]
[1734966044426,0.59643892,3305.5,3303.7,1.5123068]
[1734966044427,3.02563,3305.1,3303.7,1.5123068]
[1734966044808,3.02574,3305.0,3303.7,4.5391868]
[1734966045114,3.108155,3305.8,3303.7,4.5391868]
[1734966045115,3.02507,3305.7,3303.7,1.5123068]
[1734966045309,0.60306228,3305.6,3303.8,0.55]
[1734966045645,3.02551,3305.3,3304.1,3.02653]
[1734966045955,3.0,3305.2,3303.8,0.55]
[1734966046153,6.02554,3305.2,3303.8,0.55]
[1734966046316,3.02541,3305.4,3304.1,3.02653]
[1734966046514,3.02501,3305.8,3303.9,1.4109]
[1734966046515,3.02619,3304.5,3303.9,1.4109]
[1734966046713,1.3145,3305.6,3303.9,1.4109]
[1734966046914,3.02592,3304.8,3303.9,1.4109]
[1734966047113,3.02609,3304.6,3303.9,1.4109]
[1734966047309,0.60827625,3305.3,3303.9,1.4109]
[1734966047553,3.02594,3304.8,3303.9,1.4109]
[1734966047757,3.0,3305.3,3303.9,1.4109]
[1734966047955,3.02498,3305.8,3304.1,3.02654]
[1734966048158,3.02542,3305.4,3304.0,4.32412]
[1734966048461,3.0,3305.5,3304.0,1.2975]
[1734966048660,3.02526,3305.5,3304.2,3.02639]
[1734966048966,3.02461,3306.3,3304.6,1.2784]
[1734966049120,3.025,3305.8,3304.6,1.2784]
[1734966049317,3.02483,3306.0,3304.6,1.2784]
[1734966049617,3.0248,3306.0,3304.6,1.2784]
[1734966049858,0.604951,3306.0,3304.6,1.2784]
[1734966050165,3.0,3306.0,3304.6,1.2784]
[1734966050465,0.60791249,3306.3,3303.7,0.1683068]
[1734966050466,3.0,3305.8,3303.7,1.4813068]
[1734966050623,3.02564,3305.1,3303.9,3.02671]
[1734966050817,3.0,3305.8,3303.7,1.4813068]
[1734966050818,0.59463505,3305.2,3303.7,1.4813068]
[1734966051026,0.59463505,3305.2,3303.7,4.5082068]
[1734966051027,3.02583,3304.9,3303.7,4.5082068]
[1734966051222,0.59463505,3305.2,3303.7,4.5082068]
[1734966051223,3.02575,3305.0,3303.8,3.0268]
[1734966051568,1.3723,3305.9,3304.0,1.4012]
[1734966051733,0.24999732,3307.6,3303.8,0.0302619]
[1734966051734,0.61573344,3306.5,3305.0,1.4012]
[1734966051939,3.02443,3306.4,3305.0,1.4012]
[1734966052166,3.02486,3306.0,3305.0,1.4012]
[1734966052550,3.02434,3306.5,3305.0,1.4012]
[1734966052923,1.3731,3306.6,3304.4,3.02619]
[1734966052924,4.35031,3307.2,3306.0,3.02478]
[1734966053220,3.02352,3307.4,3306.2,3.02453]
[1734966053459,1.3266,3308.0,3306.3,1.3711]
[1734966053655,3.108155,3307.8,3306.3,1.3711]
[1734966053865,0.3108155,3307.7,3306.3,1.3711]
[1734966054173,3.02348,3307.5,3306.3,1.3711]
[1734966054323,0.60714426,3307.9,3306.3,1.3711]
[1734966054324,6.131305,3307.8,3306.3,1.3711]
[1734966054523,1.3388,3306.9,3305.3,1.279]
[1734966054759,3.02464,3306.2,3305.3,1.279]
[1734966054926,1.3388,3306.9,3305.3,1.279]
[1734966055125,3.02425,3306.6,3305.3,1.279]
[1734966055670,3.02436,3306.5,3305.4,3.0253]
[1734966056176,4.36284,3306.9,3305.3,1.279]
[1734966056177,3.02416,3306.7,3305.3,1.279]
[1734966056325,3.02477,3306.1,3305.3,1.279]
[1734966056527,0.61205378,3306.1,3304.7,1.3043]
[1734966056732,3.0,3305.8,3304.7,1.3043]
[1734966056956,3.0,3305.7,3304.7,1.3043]
[1734966057157,0.302477,3306.0,3304.7,1.3043]
[1734966057472,4.41142,3306.2,3304.7,1.3043]
[1734966057473,1.3868,3306.2,3304.7,1.3043]
[1734966057647,3.02529,3305.5,3304.7,1.3043]
[1734966058368,0.59229447,3305.8,3304.7,1.3043]
[1734966058667,3.02507,3305.7,3304.7,1.3043]
[1734966058874,3.02516,3305.6,3304.7,1.3043]
[1734966059074,3.02523,3305.6,3304.7,1.3043]
[1734966059253,3.02496,3305.9,3304.7,1.3043]
[1734966059455,3.02517,3305.6,3304.7,1.3043]
[1734966059975,3.02528,3305.5,3304.7,1.3043]
[1734966060343,0.59192259,3305.9,3304.7,1.3043]
[1734966060543,3.02498,3305.8,3304.7,1.3043]
[1734966060744,0.36169026,3305.7,3304.7,1.3043]
[1734966060965,3.02538,3305.4,3304.7,1.3043]
[1734966061290,3.02551,3305.3,3304.7,1.3043]
[1734966061495,0.36169026,3305.7,3304.7,1.3043]
[1734966061647,3.02526,3305.5,3303.8,1.2992]
[1734966061849,3.02586,3304.9,3303.8,1.2992]
[1734966062247,1.3271,3305.3,3303.8,1.2992]
[1734966062248,1.3271,3305.3,3304.1,3.02654]